fUSD/lending_fUSD_20250217
["ID","MTS","AMOUNT","RATE_DAILY","PERIOD"]
[353329788,1739769046978,-500.0,0.00013698,2]
[353329789,1739769046986,-500.0,0.00013698,2]
[353329791,1739769046995,-500.0,0.00013698,2]
[353329792,1739769047005,-615.48,0.00013698,2]
[353329794,1739769047014,-935.64,0.00013698,2]
[353329796,1739769047023,-500.0,0.00013698,2]
[353329798,1739769047032,-1097.62,0.00013698,2]
[353329800,1739769047041,-500.0,0.00013698,2]
[353329802,1739769047051,-500.0,0.00013698,2]
[353329804,1739769047061,-500.0,0.00013698,2]
[353329806,1739769047072,-500.0,0.00013698,2]
[353329808,1739769047081,-500.0,0.00013698,2]
[353329810,1739769047091,-500.0,0.00013698,2]
[353329812,1739769047101,-500.0,0.00013698,2]
[353329814,1739769047114,-393.35410158,0.00013698,2]
[353329816,1739769047124,-500.0,0.00013698,2]
[353329817,1739769047134,-500.0,0.00013698,2]
[353329819,1739769047145,-500.0,0.00013698,2]
[353329821,1739769047155,-640.7,0.00013698,2]
[353329822,1739769047164,-503.1677996,0.00013698,2]
[353329823,1739769047174,-656.34,0.00013698,2]
[353329824,1739769047184,-500.0,0.00013698,2]
[353329826,1739769047194,-500.0,0.00013698,2]
[353329827,1739769047203,-500.0,0.00013698,2]
[353329829,1739769047213,-500.0,0.00013698,2]
[353329831,1739769047223,-680.76,0.00013698,2]
[353329833,1739769047233,-772.54,0.00013698,2]
[353329835,1739769047247,-960.8,0.00013698,2]
[353329837,1739769047257,-500.0,0.00013698,2]
[353329839,1739769047266,-500.0,0.00013698,2]
[353329841,1739769047275,-1950.95,0.00013698,2]
[353329843,1739769047285,-500.0,0.00013698,2]
[353329845,1739769047294,-1522.16,0.00013698,2]
[353329846,1739769047303,-500.0,0.00013698,2]
[353329847,1739769047311,-500.0,0.00013698,2]
[353329848,1739769047320,-518.55531396,0.00013698,2]
[353329849,1739769047329,-730.1,0.00013698,2]
[353329850,1739769047338,-1991.39,0.00013698,2]
[353329851,1739769047348,-500.0,0.00013698,2]
[353329852,1739769047359,-508.64,0.00013698,2]
[353329853,1739769047530,-500.0,0.00013698,2]
[353329854,1739769047539,-1113.34,0.00013698,2]
[353329855,1739769047549,-500.0,0.00013698,2]
[353329856,1739769047558,-591.13,0.00013698,2]
[353329857,1739769047567,-819.67,0.00013698,2]
[353329858,1739769047576,-579.54,0.00013698,2]
[353329859,1739769047585,-964.27,0.00013698,2]
[353329860,1739769047595,-1320.8,0.00013698,2]
[353329861,1739769047607,-500.0,0.00013698,2]
[353329862,1739769047616,-635.31,0.00013698,2]
[353329863,1739769047626,-500.0,0.00013698,2]
[353329864,1739769047635,-500.0,0.00013698,2]
[353329865,1739769047645,-500.0,0.00013698,2]
[353329866,1739769047655,-500.0,0.00013698,2]
[353329867,1739769047664,-1226.74,0.00013698,2]
[353329868,1739769047674,-948.98,0.00013698,2]
[353329869,1739769047683,-500.0,0.00013698,2]
[353329870,1739769047692,-516.37063749,0.00013698,2]
[353329871,1739769047702,-881.82,0.00013698,2]
[353329872,1739769047711,-686.72,0.00013698,2]
[353329873,1739769047720,-500.0,0.00013698,2]
[353329874,1739769047730,-500.0,0.00013698,2]
[353329875,1739769047739,-500.0,0.00013698,2]
[353329876,1739769047749,-500.0,0.00013698,2]
[353329877,1739769047758,-1223.47,0.00013698,2]
[353329878,1739769047767,-1006.09,0.00013698,2]
[353329879,1739769047777,-500.0,0.00013698,2]
[353329880,1739769047786,-500.0,0.00013698,2]
[353329881,1739769047795,-4378.3,0.00013698,2]
[353329882,1739769047804,-500.0,0.00013698,2]
[353329883,1739769047813,-1020.88,0.00013698,2]
[353329884,1739769047822,-396.1234603,0.00013698,2]
[353329885,1739769047831,-500.0,0.00013698,2]
[353329886,1739769047842,-500.0,0.00013698,2]
[353329887,1739769047851,-500.0,0.00013698,2]
[353329888,1739769047861,-500.0,0.00013698,2]
[353329889,1739769047870,-500.0,0.00013698,2]
[353329890,1739769047880,-500.0,0.00013698,2]
[353329891,1739769047889,-629.92,0.00013698,2]
[353329892,1739769047898,-500.0,0.00013698,2]
[353329893,1739769047908,-500.0,0.00013698,2]
[353329894,1739769047917,-500.0,0.00013698,2]
[353329895,1739769047926,-500.0,0.00013698,2]
[353329896,1739769047935,-703.03,0.00013698,2]
[353329897,1739769047945,-1528.28,0.00013698,2]
[353329898,1739769047955,-500.0,0.00013698,2]
[353329899,1739769047965,-1431.63,0.00013698,2]
[353329900,1739769047975,-995.65,0.00013698,2]
[353329901,1739769047986,-500.0,0.00013698,2]
[353329902,1739769047995,-978.3,0.00013698,2]
[353329903,1739769048005,-500.0,0.00013698,2]
[353329904,1739769048015,-504.72793673,0.00013698,2]
[353329905,1739769048024,-1290.86,0.00013698,2]
[353329906,1739769048034,-510.87075397,0.00013698,2]
[353329907,1739769048044,-500.0,0.00013698,2]
[353329908,1739769048056,-500.0,0.00013698,2]
[353329909,1739769048067,-1324.48,0.00013698,2]
[353329910,1739769048077,-500.0,0.00013698,2]
[353329911,1739769048088,-500.0,0.00013698,2]
[353329912,1739769048099,-1370.17,0.00013698,2]
[353329913,1739769048111,-500.0,0.00013698,2]
[353329914,1739769048122,-500.0,0.00013698,2]
[353329915,1739769048132,-500.0,0.00013698,2]
[353329916,1739769048143,-500.0,0.00013698,2]
[353329917,1739769048153,-219.29279691,0.00013698,2]
[353329918,1739769048164,-500.0,0.00013698,2]
[353329919,1739769048174,-616.32,0.00013698,2]
[353329920,1739769048183,-504.07,0.00013698,2]
[353329921,1739769048193,-1208.67,0.00013698,2]
[353329922,1739769048203,-836.92,0.00013698,2]
[353329923,1739769048212,-500.0,0.00013698,2]
[353329924,1739769048221,-500.0,0.00013698,2]
[353329925,1739769048231,-500.0,0.00013698,2]
[353329926,1739769048241,-1415.43,0.00013698,2]
[353329927,1739769048250,-956.76,0.00013698,2]
[353329928,1739769048259,-500.0,0.00013698,2]
[353329929,1739769048269,-500.0,0.00013698,2]
[353329930,1739769048278,-500.0,0.00013698,2]
[353329931,1739769048288,-3536.65,0.00013698,2]
[353329932,1739769048296,-503.01905835,0.00013698,2]
[353329933,1739769048305,-500.0,0.00013698,2]
[353329934,1739769048315,-1074.93,0.00013698,2]
[353329935,1739769048324,-500.0,0.00013698,2]
[353329936,1739769048333,-500.0,0.00013698,2]
[353329937,1739769048343,-500.0,0.00013698,2]
[353329938,1739769048353,-566.14,0.00013698,2]
[353329939,1739769048365,-746.12,0.00013698,2]
[353329940,1739769048374,-704.02,0.00013698,2]
[353329941,1739769048385,-619.82158455,0.00013698,2]
[353329942,1739769048395,-1297.93,0.00013698,2]
[353329943,1739769048404,-577.23,0.00013698,2]
[353329944,1739769048414,-500.0,0.00013698,2]
[353329945,1739769048423,-1033.24,0.00013698,2]
[353329946,1739769048433,-500.0,0.00013698,2]
[353329947,1739769048442,-500.0,0.00013698,2]
[353329948,1739769048451,-980.55,0.00013698,2]
[353329949,1739769048460,-500.0,0.00013698,2]
[353329950,1739769048469,-592.87,0.00013698,2]
[353329951,1739769048479,-500.0,0.00013698,2]
[353329952,1739769048488,-504.8550081,0.00013698,2]
[353329953,1739769048498,-1069.87,0.00013698,2]
[353329954,1739769048508,-500.0,0.00013698,2]
[353329955,1739769048518,-1272.05,0.00013698,2]
[353329956,1739769048527,-1337.65,0.00013698,2]
[353329957,1739769048537,-500.0,0.00013698,2]
[353329958,1739769048547,-500.0,0.00013698,2]
[353329959,1739769048557,-500.0,0.00013698,2]
[353329960,1739769048570,-493.71827944,0.00013698,2]
[353329961,1739769048580,-500.0,0.00013698,2]
[353329962,1739769048589,-1062.44,0.00013698,2]
[353329963,1739769048598,-500.0,0.00013698,2]
[353329964,1739769048610,-500.0,0.00013698,2]
[353329965,1739769048620,-500.0,0.00013698,2]
[353329966,1739769048630,-500.0,0.00013698,2]
[353329967,1739769048639,-1718.57,0.00013698,2]
[353329968,1739769048649,-500.0,0.00013698,2]
[353329969,1739769048659,-1534.48,0.00013698,2]
[353329970,1739769048668,-500.0,0.00013698,2]
[353329971,1739769048678,-530.42052849,0.00013698,2]
[353329972,1739769048687,-500.0,0.00013698,2]
[353329973,1739769048696,-500.0,0.00013698,2]
[353329974,1739769048705,-500.0,0.00013698,2]
[353329975,1739769048715,-500.0,0.00013698,2]
[353329976,1739769048725,-745.33,0.00013698,2]
[353329977,1739769048735,-1058.83,0.00013698,2]
[353329978,1739769048744,-500.0,0.00013698,2]
[353329979,1739769048753,-500.0,0.00013698,2]
[353329980,1739769048762,-500.0,0.00013698,2]
[353329981,1739769048771,-511.67,0.00013698,2]
[353329982,1739769048780,-500.0,0.00013698,2]
[353329983,1739769048790,-1032.73,0.00013698,2]
[353329984,1739769048799,-294.60830113,0.00013698,2]
[353329985,1739769048808,-500.0,0.00013698,2]
[353329986,1739769048817,-500.0,0.00013698,2]
[353329987,1739769048827,-500.0,0.00013698,2]
[353329988,1739769048836,-855.78,0.00013698,2]
[353329989,1739769048846,-500.0,0.00013698,2]
[353329990,1739769048857,-500.0,0.00013698,2]
[353329991,1739769048868,-504.85737903,0.00013698,2]
[353329992,1739769048877,-1873.76,0.00013698,2]
[353329993,1739769048888,-248.28899756,0.00013698,2]
[353329994,1739769048898,-500.0,0.00013698,2]
[353329995,1739769048909,-556.98165232,0.00013698,2]
[353329996,1739769048919,-500.0,0.00013698,2]
[353329997,1739769048930,-982.61,0.00013698,2]
[353329998,1739769048940,-514.5567042,0.00013698,2]
[353329999,1739769048951,-260.35267547,0.00013698,2]
[353330000,1739769048962,-500.0,0.00013698,2]
[353330001,1739769048973,-500.0,0.00013698,2]
[353330002,1739769048983,-500.0,0.00013698,2]
[353330003,1739769048994,-500.0,0.00013698,2]
[353330004,1739769049004,-500.0,0.00013698,2]
[353330005,1739769049015,-801.96,0.00013698,2]
[353330006,1739769049027,-598.6,0.00013698,2]
[353330007,1739769049037,-500.0,0.00013698,2]
[353330008,1739769049047,-965.79,0.00013698,2]
[353330009,1739769049061,-682.53,0.00013698,2]
[353330010,1739769049071,-500.0,0.00013698,2]
[353330011,1739769049081,-500.0,0.00013698,2]
[353330012,1739769049090,-500.0,0.00013698,2]
[353330013,1739769049102,-500.0,0.00013698,2]
[353330014,1739769049116,-500.0,0.00013698,2]
[353330015,1739769049127,-988.82,0.00013698,2]
[353330016,1739769049140,-500.0,0.00013698,2]
[353330017,1739769049151,-657.9,0.00013698,2]
[353330018,1739769049161,-500.0,0.00013698,2]
[353330019,1739769049172,-702.15,0.00013698,2]
[353330020,1739769049183,-500.0,0.00013698,2]
[353330021,1739769049195,-500.0,0.00013698,2]
[353330022,1739769049205,-500.0,0.00013698,2]
[353330023,1739769049215,-707.35,0.00013698,2]
[353330024,1739769049224,-500.0,0.00013698,2]
[353330025,1739769049234,-500.0,0.00013698,2]
[353330026,1739769049243,-613.79,0.00013698,2]
[353330027,1739769049253,-710.58,0.00013698,2]
[353330028,1739769049263,-500.0,0.00013698,2]
[353330029,1739769049272,-500.0,0.00013698,2]
[353330030,1739769049281,-500.0,0.00013698,2]
[353330031,1739769049291,-500.0,0.00013698,2]
[353330032,1739769049301,-1164.98,0.00013698,2]
[353330033,1739769049311,-1302.15,0.00013698,2]
[353330034,1739769049322,-504.57844999,0.00013698,2]
[353330035,1739769049332,-965.69,0.00013698,2]
[353330036,1739769049343,-500.0,0.00013698,2]
[353330037,1739769049353,-500.0,0.00013698,2]
[353330038,1739769049364,-500.0,0.00013698,2]
[353330039,1739769049375,-500.0,0.00013698,2]
[353330040,1739769049385,-2835.64,0.00013698,2]
[353330041,1739769049395,-304.87653865,0.00013698,2]
[353330042,1739769049405,-200.0,0.00013699,2]
[353330043,1739769049416,-169.68,0.00013699,2]
[353330044,1739769049426,-290.16,0.000137,2]
[353330045,1739769049436,-3097.35657226,0.00013744,2]
[353330046,1739769049446,-500.0,0.00013751,2]
[353330047,1739769049456,-2000.0,0.00013751,2]
[353330048,1739769049467,-500.0,0.00013751,2]
[353330049,1739769049478,-500.0,0.00013751,2]
[353330050,1739769049489,-200.0,0.00013751,2]
[353330051,1739769049500,-496.5885726,0.00013763,2]
[353330052,1739769049510,-1309.98,0.00013778,2]
[353330053,1739769049520,-3193.18,0.00013778,2]
[353330054,1739769049530,-947.98,0.00013778,2]
[353330055,1739769049540,-880.05,0.00013778,2]
[353330056,1739769049551,-555.59,0.00013778,2]
[353330057,1739769049561,-1488.54,0.00013778,2]
[353330058,1739769049571,-500.0,0.00013778,2]
[353330059,1739769049581,-778.27,0.00013778,2]
[353330060,1739769049593,-1084.07,0.00013778,2]
[353330061,1739769049604,-1403.38,0.00013778,2]
[353330062,1739769049617,-1000.0,0.00013778,2]
[353330063,1739769049628,-1222.59,0.00013778,2]
[353330064,1739769049639,-500.0,0.00013778,2]
[353330065,1739769049649,-500.0,0.00013778,2]
[353330066,1739769049660,-1327.11,0.00013778,2]
[353330067,1739769049670,-500.0,0.00013778,2]
[353330068,1739769049680,-724.54,0.00013778,2]
[353330069,1739769049691,-500.0,0.00013779,2]
[353330070,1739769049702,-500.0,0.00013779,2]
[353330071,1739769049712,-500.0,0.00013779,2]
[353330072,1739769049723,-510.94680841,0.0001378,2]
[353330073,1739769049733,-500.0,0.0001378,2]
[353330074,1739769049743,-500.0,0.0001378,2]
[353330075,1739769049752,-508.97543147,0.0001378,2]
[353330076,1739769049761,-513.30008333,0.0001378,2]
[353330077,1739769049771,-500.0,0.0001378,2]
[353330078,1739769049781,-508.00079669,0.0001378,2]
[353330079,1739769049791,-500.0,0.0001378,2]
[353330080,1739769049801,-366.78567982,0.0001378,2]
[353330081,1739769049811,-500.0,0.0001378,2]
[353330082,1739769049820,-500.0,0.0001378,2]
[353330083,1739769049831,-500.0,0.0001378,2]
[353330084,1739769049840,-500.0,0.0001378,2]
[353330085,1739769049850,-500.0,0.0001378,2]
[353330086,1739769049861,-500.0,0.0001378,2]
[353330087,1739769049871,-500.0,0.0001378,2]
[353330088,1739769049882,-500.0,0.0001378,2]
[353330089,1739769049891,-500.0,0.0001378,2]
[353330090,1739769049902,-500.0,0.0001378,2]
[353330091,1739769049913,-500.0,0.0001378,2]
[353330092,1739769049923,-500.0,0.0001378,2]
[353330093,1739769049932,-500.0,0.0001378,2]
[353330094,1739769049942,-513.65514444,0.0001378,2]
[353330095,1739769049952,-500.0,0.0001378,2]
[353330096,1739769049961,-500.0,0.0001378,2]
[353330097,1739769049971,-500.0,0.0001378,2]
[353330098,1739769049980,-500.0,0.0001378,2]
[353330099,1739769049990,-500.0,0.0001378,2]
[353330100,1739769049999,-500.0,0.0001378,2]
[353330101,1739769050009,-500.0,0.0001378,2]
[353330102,1739769050018,-500.0,0.0001378,2]
[353330103,1739769050028,-500.0,0.0001378,2]
[353330104,1739769050037,-200.28206284,0.0001378,2]
[353330105,1739769050047,-500.0,0.0001378,2]
[353330106,1739769050057,-500.0,0.0001378,2]
[353330107,1739769050075,-511.82281573,0.0001378,2]
[353330108,1739769050085,-500.0,0.0001378,2]
[353330109,1739769050095,-500.0,0.0001378,2]
[353330110,1739769050104,-500.0,0.0001378,2]
[353330111,1739769050117,-500.0,0.0001378,2]
[353330112,1739769050127,-500.0,0.0001378,2]
[353330113,1739769050140,-508.47000982,0.0001378,2]
[353330114,1739769050149,-500.0,0.0001378,2]
[353330115,1739769050159,-500.0,0.0001378,2]
[353330116,1739769050169,-500.0,0.0001378,2]
[353330117,1739769050178,-500.0,0.0001378,2]
[353330118,1739769050188,-500.0,0.0001378,2]
[353330119,1739769050198,-500.0,0.0001378,2]
[353330120,1739769050208,-500.0,0.0001378,2]
[353330121,1739769050218,-500.0,0.0001378,2]
[353330122,1739769050228,-500.0,0.0001378,2]
[353330123,1739769050381,-500.0,0.0001378,2]
[353330124,1739769050391,-500.0,0.0001378,2]
[353330125,1739769050401,-500.0,0.0001378,2]
[353330126,1739769050411,-500.0,0.0001378,2]
[353330127,1739769050421,-519.8,0.0001378,2]
[353330128,1739769050431,-579.31,0.0001378,2]
[353330129,1739769050440,-520.46,0.0001378,2]
[353330130,1739769050450,-500.0,0.0001378,2]
[353330131,1739769050461,-500.0,0.0001378,2]
[353330132,1739769050471,-500.0,0.0001378,2]
[353330133,1739769050481,-500.0,0.0001378,2]
[353330134,1739769050491,-500.0,0.0001378,2]
[353330135,1739769050501,-500.0,0.0001378,2]
[353330136,1739769050511,-500.0,0.0001378,2]
[353330137,1739769050522,-500.0,0.0001378,2]
[353330138,1739769050531,-512.83400584,0.0001378,2]
[353330139,1739769050540,-500.0,0.0001378,2]
[353330140,1739769050550,-500.0,0.0001378,2]
[353330141,1739769050560,-510.41874488,0.0001378,2]
[353330142,1739769050569,-500.0,0.0001378,2]
[353330143,1739769050579,-477.74294293,0.0001378,2]
[353330147,1739769419015,500.0,0.0002,120]
[353330148,1739769419106,500.0,0.0002,120]
[353330185,1739770231774,-4761.7817,8.836e-05,2]
[353330186,1739770231785,-2331.3517,8.836e-05,2]
[353330187,1739770231794,-150.0,9.719e-05,2]
[353330188,1739770231802,-951.92,9.734e-05,2]
[353330189,1739770231811,-150.0,9.999e-05,2]
[353330190,1739770231820,-550.0,0.0001,2]
[353330191,1739770231829,-1093.55504733,0.0001,2]
[353330192,1739770231846,-1016.00119555,0.0001,2]
[353330193,1739770231864,-6915.11084929,0.0001,2]
[353330194,1739770231875,-10910.00197016,0.0001,2]
[353330195,1739770237273,-31234.18200261,0.0001,2]
[353330196,1739770237283,-769.3790351,0.0001,2]
[353330197,1739770237296,-2074.92279618,0.0001,2]
[353330198,1739770237305,-298348.84665291,0.0001,2]
[353330203,1739770237339,-780.40395655,0.0001,2]
[353330207,1739770238129,-145254.47179834,0.0001,2]
[353330208,1739770238144,-30989.3997722,0.0001,2]
[353330209,1739770238235,-23441.18919972,0.0001,2]
[353330210,1739770238245,-1300.0,0.0001,2]
[353330211,1739770238256,-1003.64839968,0.0001,2]
[353330212,1739770238268,-9020.5312944,0.0001,2]
[353330213,1739770238279,-293.12644518,0.0001,2]
[353330214,1739770238305,-1203.88782761,0.0001,2]
[353330215,1739770238316,-376.93618106,0.0001,2]
[353330216,1739770238327,-4941.09052972,0.0001,2]
[353330217,1739770238371,-11939.882424,0.0001,2]
[353330221,1739770239588,-46626.74979372,0.0001,2]
[353330222,1739770239598,-806.91227397,0.0001,2]
[353330223,1739770239607,-315.6389278,0.00010037,2]
[353330224,1739770239617,-155.95,0.00010137,2]
[353330225,1739770239625,-478.12998825,0.000107,2]
[353330226,1739770239635,-3330.18056728,0.000107,2]
[353330227,1739770239644,-233.58411766,0.00010773,2]
[353330228,1739770239653,-500.37188746,0.00010773,2]
[353330229,1739770239662,-503.55214157,0.00010773,2]
[353330230,1739770239671,-500.0,0.00010773,2]
[353330231,1739770239680,-194.00908945,0.0001079,2]
[353330232,1739770239688,-2350.19452329,0.000108,2]
[353330233,1739770239716,-38628.01274257,0.000108,2]
[353330254,1739770242555,-262.44822189,0.000108,2]
[353330255,1739770242567,-10495.9304846,0.000108,2]
[353330256,1739770242611,-89007.42602235,0.000108,2]
[353330257,1739770242672,-18315.70034756,0.000108,2]
[353330258,1739770242684,-27402.16630377,0.000108,2]
[353330259,1739770242695,-2519.8,0.000108,2]
[353330260,1739770242734,-556.98300019,0.000108,2]
[353330261,1739770242745,-9725.0,0.000108,2]
[353330262,1739770242756,-1411.76710021,0.000108,2]
[353330263,1739770242768,-805.46000001,0.000108,2]
[353330264,1739770242779,-524.3076,0.000108,2]
[353330278,1739770245419,-439.5,0.000108,2]
[353330279,1739770245502,-256.69614574,0.000108,2]
[353330320,1739770514039,9114.4406,8.699e-05,2]
[353330321,1739770645060,2011.4963,8.699e-05,2]
[353330322,1739770791198,182.890396,8.79e-05,2]
[353330348,1739771354340,935.71,8.219e-05,2]
[353330349,1739771401612,577.4965,8.256e-05,2]
[353330355,1739771431628,-150.0,8.835e-05,2]
[353330356,1739771431638,-300.0,8.835e-05,2]
[353330357,1739771431648,-183.91785618,8.836e-05,2]
[353330358,1739771431659,-649.75594382,8.836e-05,2]
[353330359,1739771431669,-502.4849,8.836e-05,2]
[353330360,1739771431678,-85.79915618,8.836e-05,2]
[353330361,1739771431690,-8720.64794382,8.836e-05,2]
[353330362,1739771431699,-19157.68426291,8.836e-05,2]
[353330363,1739771431734,-222908.34403709,8.836e-05,2]
[353330364,1739771431743,-4305.0587,8.836e-05,2]
[353330365,1739771431753,-11965.4665,8.836e-05,2]
[353330366,1739771431762,-2631.0055,8.836e-05,2]
[353330367,1739771431772,-4807.1863,8.836e-05,2]
[353330368,1739771431782,-5645.2449,8.836e-05,2]
[353330369,1739771431791,-1257.3744,8.836e-05,2]
[353330370,1739771431801,-9378.9224,8.836e-05,2]
[353330371,1739771431810,-860.4202,8.836e-05,2]
[353330372,1739771431824,-545.4791,8.836e-05,2]
[353330373,1739771431834,-4820.8407,8.836e-05,2]
[353330374,1739771431843,-1382.18618706,8.836e-05,2]
[353330375,1739771431853,-611.44917525,8.836e-05,2]
[353330376,1739771431863,-500.0,8.851e-05,2]
[353330377,1739771431872,-1000.0,8.851e-05,2]
[353330378,1739771431882,-9790.8691,8.973e-05,2]
[353330379,1739771431892,-414.73,9.647e-05,2]
[353330380,1739771431901,-414.73,9.649e-05,2]
[353330381,1739771431911,-414.73,9.652e-05,2]
[353330382,1739771431920,-414.73,9.654e-05,2]
[353330383,1739771431929,-414.73,9.657e-05,2]
[353330384,1739771431938,-414.73,9.659e-05,2]
[353330385,1739771431948,-414.73,9.662e-05,2]
[353330386,1739771431957,-414.73,9.665e-05,2]
[353330387,1739771431967,-414.73,9.667e-05,2]
[353330388,1739771431976,-414.73,9.67e-05,2]
[353330389,1739771431985,-414.73,9.672e-05,2]
[353330390,1739771431994,-414.73,9.675e-05,2]
[353330391,1739771432003,-414.73,9.677e-05,2]
[353330392,1739771432013,-414.73,9.68e-05,2]
[353330393,1739771432023,-414.73,9.682e-05,2]
[353330394,1739771432032,-414.73,9.685e-05,2]
[353330395,1739771432041,-414.73,9.687e-05,2]
[353330396,1739771432051,-414.73,9.69e-05,2]
[353330397,1739771432060,-414.73,9.693e-05,2]
[353330398,1739771432071,-414.73,9.695e-05,2]
[353330399,1739771432080,-255.0,9.718e-05,2]
[353330400,1739771432089,-420.0,9.718e-05,2]
[353330401,1739771432099,-150.0,9.719e-05,2]
[353330402,1739771432108,-200.0,9.719e-05,2]
[353330403,1739771432118,-150.0,9.719e-05,2]
[353330404,1739771432127,-475.55437541,9.734e-05,2]
[353330405,1739771432158,-344.40721085,9.734e-05,2]
[353330406,1739771432170,-180.03841374,9.734e-05,2]
[353330407,1739771432180,-183.87,9.843e-05,2]
[353330409,1739771432189,-110.27680198,9.969e-05,2]
[353330411,1739771432200,-773.83676388,9.969e-05,2]
[353330413,1739771432211,-384.61520087,9.969e-05,2]
[353330416,1739771432229,-270.16123327,9.969e-05,2]
[353330418,1739771432238,-194.08571142,0.0001,2]
[353330420,1739771432248,-161.75305531,0.0001,2]
[353330422,1739771432259,-45451.41952556,0.0001,2]
[353330425,1739771432271,-3472.34902197,0.0001,2]
[353330427,1739771432281,-1049.05504559,0.0001,2]
[353330475,1739771432876,-287.83754999,0.0001,2]
[353330476,1739771432888,-19825.70101284,0.0001,2]
[353330477,1739771432900,-23900.10905885,0.0001,2]
[353330478,1739771432910,-550.0,0.0001,2]
[353330479,1739771432920,-250.0,0.00010055,2]
[353330480,1739771432929,-6896.11707969,0.00010063,2]
[353330481,1739771432939,-359.67,0.00010137,2]
[353330482,1739771432947,-935.71,0.0001046,2]
[353330483,1739771432957,-469.33,0.00010474,2]
[353330484,1739771432967,-430.0,0.0001069,2]
[353330485,1739771432977,-587.0,0.0001069,2]
[353330486,1739771432987,-3721.36644,0.0001069,2]
[353330487,1739771432998,-500.0,0.00010773,2]
[353330488,1739771433008,-524.20844513,0.00010773,2]
[353330489,1739771433018,-500.0,0.00010773,2]
[353330490,1739771433029,-194.00908946,0.0001079,2]
[353330491,1739771433039,-500.0,0.00010799,2]
[353330492,1739771433049,-348.78725488,0.00010799,2]
[353330493,1739771433059,-281.69060875,0.00010799,2]
[353330494,1739771433072,-500.0,0.00010799,2]
[353330495,1739771433082,-500.0,0.00010799,2]
[353330496,1739771433093,-500.0,0.00010799,2]
[353330497,1739771433104,-500.0,0.00010799,2]
[353330498,1739771433115,-500.0,0.00010799,2]
[353330499,1739771433125,-427.70626069,0.00010799,2]
[353330500,1739771433135,-500.0,0.00010799,2]
[353330501,1739771433145,-355.61369832,0.00010799,2]
[353330502,1739771433155,-173.35091462,0.00010799,2]
[353330503,1739771433164,-103392.69332101,0.000108,2]
[353330504,1739771433177,-40764.13627111,0.000108,2]
[353330505,1739771433190,-6983.9256312,0.000108,2]
[353330506,1739771433202,-388.59141856,0.000108,2]
[353330507,1739771433233,-696798.38929957,0.000108,2]
[353330508,1739771433244,-6088.61886519,0.000108,2]
[353330509,1739771433263,-1567.77681186,0.000108,2]
[353330510,1739771433276,-250.22877249,0.000108,2]
[353330511,1739771433287,-7846.16066244,0.000108,2]
[353330512,1739771433299,-4253.86199733,0.000108,2]
[353330513,1739771433312,-3922.29944495,0.000108,2]
[353330514,1739771433326,-774.09765719,0.000108,2]
[353330679,1739771439676,-1693.3984075,8.836e-05,2]
[353330680,1739771439738,-707.16598164,8.836e-05,2]
[353330681,1739771439750,-1270.15857547,8.836e-05,2]
[353330844,1739771442710,-110.19386874,8.836e-05,2]
[353330845,1739771442720,-151.80609526,0.000108,2]
[353330846,1739771442768,-33378.54755146,0.000108,2]
[353330850,1739771443209,-84787.26407208,0.000108,2]
[353330851,1739771443221,-58517.89166101,0.000108,2]